fUSD/lending_fUSD_20240209
["ID","MTS","AMOUNT","RATE_DAILY","PERIOD"]
[313604828,1707462620358,-248.33395542,0.00022799,2]
[313604829,1707462620379,-150.0,0.00022799,2]
[313604830,1707462620391,-2100.15348117,0.00022799,2]
[313604831,1707462620400,-689.9,0.00022799,2]
[313604832,1707462620410,-2312.37,0.00022799,2]
[313604833,1707462620419,-3525.1877,0.000228,2]
[313604834,1707462620428,-157.22228639,0.000228,2]
[313604835,1707462620438,-1975.9218,0.000228,2]
[313604836,1707462620448,-204.458097,0.00022816,2]
[313604837,1707462620457,-800.0,0.00022816,2]
[313604838,1707462620466,-157.22228639,0.00022833,2]
[313604839,1707462620475,-154.1,0.00022836,2]
[313604840,1707462620484,-159.66,0.00022866,2]
[313604841,1707462620493,-157.22228639,0.00022867,2]
[313604842,1707462620501,-359.12673014,0.00022898,2]
[313604843,1707462620510,-155.3750394,0.00022898,2]
[313604844,1707462620519,-358.1575,0.00022898,2]
[313604845,1707462620529,-499.99,0.00022898,2]
[313604846,1707462620538,-597.48018043,0.00022899,2]
[313604847,1707462620547,-3855.81742499,0.00022899,2]
[313604848,1707462621181,-2721.56257501,0.00022899,2]
[313604849,1707462621192,-786.91087562,0.00022899,2]
[313604852,1707462632313,-155.0,0.00022898,2]
[313604853,1707462632334,-357.28923907,0.00022899,2]
[313604854,1707462632348,-1884.54427579,0.00022899,2]
[313604855,1707462632357,-3713.1939512,0.000229,2]
[313604856,1707462632374,-4651.17139476,0.000229,2]
[313604857,1707462632448,-4205.90023532,0.000229,2]
[313604858,1707462632461,-7823.30645451,0.000229,2]
[313604859,1707462632474,-4254.27439857,0.000229,2]
[313604860,1707462632486,-4169.69231998,0.000229,2]
[313604861,1707462632536,-450.037073,0.000229,2]
[313604862,1707462632548,-1172.86375946,0.000229,2]
[313604863,1707462632597,-1186.83409097,0.000229,2]
[313604864,1707462632609,-1221.81583619,0.000229,2]
[313604865,1707462632622,-601.22278849,0.000229,2]
[313604866,1707462632635,-3160.94400115,0.000229,2]
[313604867,1707462632649,-462.96742777,0.000229,2]
[313604892,1707462638356,-3673.67795762,0.000229,2]
[313604893,1707462638577,-21649.67151101,0.000229,2]
[313604894,1707462638587,-34343.6689643,0.000229,2]
[313604895,1707462638599,-8906.5279357,0.000229,2]
[313604896,1707462638609,-302.697,0.000229,2]
[313604897,1707462638618,-157.22228639,0.000229,2]
[313604898,1707462638627,-1097.44525309,0.000229,2]
[313604899,1707462638637,-196.941229,0.000229,2]
[313604900,1707462638646,-5000.0,0.000229,2]
[313604901,1707462638655,-693.56131897,0.000229,2]
[313604902,1707462638665,-470.90465876,0.000229,2]
[313604903,1707462638674,-376.13874131,0.000229,2]
[313604904,1707462638685,-579.4813794,0.000229,2]
[313604905,1707462638695,-261.99612737,0.000229,2]
[313604906,1707462638705,-213.76902792,0.000229,2]
[313604907,1707462638714,-1839.4442696,0.000229,2]
[313604908,1707462638722,-181.10851318,0.0002299,2]
[313604909,1707462638732,-181.10851318,0.0002299,2]
[313604910,1707462638741,-516.85819052,0.00022998,2]
[313604911,1707462638750,-1030.73224151,0.00022998,2]
[313604912,1707462638759,-2323.72108197,0.00022998,2]
[313604913,1707462638768,-211.2737979,0.00022998,2]
[313604914,1707462638777,-179.5811285,0.00022998,2]
[313604915,1707462638786,-954.91901946,0.00022998,2]
[313604916,1707462638806,-1824.02706814,0.00022998,2]
[313604917,1707462638816,-510.93548269,0.00022998,2]
[313604918,1707462638828,-218.11451731,0.00022998,2]
[313604919,1707462638838,-731.79185924,0.00022999,2]
[313604920,1707462638847,-857.33720882,0.00022999,2]
[313604921,1707462638856,-150.0,0.00022999,2]
[313604923,1707462638865,-150.0,0.00022999,2]
[313604924,1707462638875,-213.52798968,0.00022999,2]
[313604925,1707462638884,-236.42325813,0.00023,2]
[313604929,1707462642168,-49967.24525641,0.00023,2]
[313604930,1707462642191,-2835.0656512,0.00023,2]
[313604946,1707462643630,-10530.95960007,0.00023,2]
[313604947,1707462643642,-2986.27899514,0.00023,2]
[313604948,1707462643687,-8876.45941826,0.00023,2]
[313604960,1707462646493,-1000.0,0.00023,2]
[313604961,1707462646553,-6864.32362051,0.00023,2]
[313604962,1707462646580,-22526.32733904,0.00023,2]
[313604963,1707462646592,-4204.21794385,0.00023,2]
[313604964,1707462646730,-9226.2854,0.00023,2]
[313604965,1707462668247,228.76,0.00021953,2]
[313604966,1707462704590,162.25097554,0.00020698,2]
[313604968,1707462733023,23900.0,0.0002232,2]
[313604971,1707462762440,1062.41,0.0002232,2]
[313604972,1707462794766,-155.0,0.00022697,2]
[313604973,1707462794790,-3142.02377239,0.00022698,2]
[313604974,1707462794812,-2133.7099,0.00022699,2]
[313604975,1707462794834,-1170.58971041,0.00022699,2]
[313604976,1707462794856,-300.0,0.00022799,2]
[313604977,1707462794878,-150.0,0.00022799,2]
[313604978,1707462794901,-150.0,0.00022799,2]
[313604979,1707462794923,-159.00680078,0.000228,2]
[313604980,1707462794945,-1975.9218,0.000228,2]
[313604981,1707462794969,-1000.0,0.00022898,2]
[313604982,1707462794991,-19109.9488,0.00022898,2]
[313604983,1707462795013,-724.18,0.000229,2]
[313604984,1707462795036,-713.97,0.000229,2]
[313604985,1707462795059,-721.13,0.000229,2]
[313604986,1707462795080,-354.98,0.000229,2]
[313604987,1707462795101,-219.45295733,0.000229,2]
[313604988,1707462795121,-3230.92220838,0.000229,2]
[313604989,1707462795143,-1960.8537076,0.000229,2]
[313604990,1707462795165,-5000.0,0.000229,2]
[313604991,1707462795188,-5385.16,0.000229,2]
[313604992,1707462795210,-3525.1877,0.000229,2]
[313604993,1707462795233,-155.3750394,0.00022998,2]
[313604994,1707462795255,-189.4993434,0.00022998,2]
[313604995,1707462795276,-359.12673014,0.00022998,2]
[313604996,1707462795298,-176.0614982,0.00022998,2]
[313604997,1707462795491,-1061.85868393,0.00022998,2]
[313604998,1707462795512,-597.48018043,0.00022999,2]
[313604999,1707462795535,-405.07526564,0.00022999,2]
[313605000,1707462795560,-571.55813921,0.00022999,2]
[313605001,1707462795581,-58907.17734123,0.00023,2]
[313605002,1707462795605,-86294.75042153,0.00023,2]
[313605014,1707463056212,15608.68052345,0.00022501,2]
[313605015,1707463196303,233.63,0.00021575,2]
[313605016,1707463214966,-207.0,0.00022782,2]
[313605017,1707463214987,-155.0,0.00022799,2]
[313605018,1707463215007,-20399.0463,0.000228,2]
[313605019,1707463215027,-204.458097,0.00022816,2]
[313605020,1707463215047,-800.0,0.00022816,2]
[313605021,1707463215251,-500.0,0.000229,2]
[313605022,1707463215271,-70355.8151,0.000229,2]
[313605023,1707463215291,-279.6518,0.000229,2]
[313605024,1707463215311,-5000.0,0.000229,2]
[313605025,1707463215334,-41894.6376,0.000229,2]
[313605026,1707463215354,-4754.0799,0.000229,2]
[313605027,1707463215373,-658.92837757,0.000229,2]
[313605028,1707463215392,-1183.7096,0.000229,2]
[313605029,1707463215411,-358.1575,0.000229,2]
[313605030,1707463215431,-157.9161195,0.00022998,2]
[313605031,1707463215451,-6031.1261535,0.00022998,2]
[313605032,1707463215471,-880.3074914,0.00022998,2]
[313605033,1707463215490,-381.03875948,0.00022999,2]
[313605034,1707463215512,-196162.19222943,0.00023,2]
[313605035,1707463215532,-462999.99999997,0.00023,2]
[313605036,1707463215554,-2186636.93497215,0.00023,2]
[313605037,1707463267407,187.0,0.00020166,2]
[313605038,1707463316490,354.08,0.00022,2]
[313605058,1707463603929,500.0,0.0002265,5]
[313605063,1707463677418,2000.0,0.00022293,2]
[313605066,1707463713594,1179.03,0.00022307,2]
[313605068,1707463732247,-155.0,0.00022639,2]
[313605069,1707463732268,-500.0,0.0002264,3]
[313605070,1707463732288,-500.0,0.0002265,4]
[313605071,1707463732309,-765.02251201,0.00022715,2]
[313605072,1707463732330,-161.87180318,0.00022716,2]
[313605073,1707463732349,-574.0,0.0002277,2]
[313605074,1707463732370,-800.0,0.00022816,2]
[313605075,1707463732388,-5000.0,0.000229,2]
[313605076,1707463732408,-439.28558504,0.000229,2]
[313605077,1707463732426,-219.45295733,0.000229,2]
[313605078,1707463732448,-4167.4048687,0.00022998,2]
[313605079,1707463732469,-789.5805975,0.00022998,2]
[313605080,1707463732490,-254.02583965,0.00022999,2]
[313605081,1707463732509,-6577.38,0.00022999,2]
[313605082,1707463732531,-19096.97583659,0.00023,2]
[313605083,1707463756170,-173.88893443,0.00022998,2]
[313605084,1707463756191,-2881.7008804,0.00022998,2]
[313605085,1707463756211,-169.35055977,0.00022999,2]
[313605086,1707463756231,-16775.0596254,0.00023,2]
[313605087,1707463767067,221.94,0.00021807,2]
[313605098,1707463831597,-150.01,0.00022999,2]
[313605099,1707463831607,-1350.72156548,0.00023,2]
[313605100,1707463831657,-421.07761078,0.00023,2]
[313605101,1707463831782,-4632.58516823,0.00023,2]
[313605121,1707463837862,-219.45295733,0.000229,2]
[313605122,1707463837872,-8266.58177765,0.00023,2]
[313605123,1707463837919,-24643.69837545,0.00023,2]
[313605148,1707463840101,-2292.2259184,0.00023,2]
[313605149,1707463840157,-731.18126348,0.00023,2]
[313605150,1707463840170,-268.8234028,0.00023,2]
[313605151,1707463840216,-49959.74944487,0.00023,2]
[313605152,1707463840273,-3187.01171233,0.00023,2]
[313605153,1707463840344,-434.56464648,0.00023,2]
[313605154,1707463840396,-2171.06496096,0.00023,2]
[313605186,1707463842587,-188.69111953,0.00022999,2]
[313605187,1707463842597,-206983.7779697,0.00023,2]
[313605188,1707463842696,-967608.09166433,0.00023,2]
[313605189,1707463842706,-883.31627943,0.00023,2]
[313605190,1707463842716,-869.33616524,0.00023,2]
[313605191,1707463842726,-731.34,0.00023,2]
[313605192,1707463842735,-152039.93238669,0.00023,2]
[313605193,1707463842745,-207.48977195,0.00023,2]
[313605194,1707463842766,-732.72,0.00023,2]
[313605195,1707463842776,-732.07,0.00023,2]
[313605196,1707463842786,-717.31,0.00023,2]
[313605197,1707463842796,-731.1,0.00023,2]
[313605199,1707463842805,-212723.44593936,0.00023,2]
[313605207,1707463846086,-464.44362754,0.00023,2]
[313605213,1707463846502,-95436.60471157,0.00023,2]
[313605214,1707463846626,-2309.48502223,0.00023,2]
[313605216,1707463916885,152.775233,0.00023,30]
[313605217,1707463924781,354.08,0.00022,2]
[313605218,1707464122773,364.89997901,0.00022999,10]
[313605219,1707464122822,364.89997901,0.00022999,10]
[313605221,1707464254521,228.03,0.00020458,2]
[313605223,1707464276579,1003.63,0.00022344,2]
[313605224,1707464303891,10000.0,0.00028,120]
[313605225,1707464322115,13097.13,0.00022344,2]
[313605226,1707464322386,6503.90857744,0.000274,120]
[313605227,1707464363287,1852.42,0.0002235,2]
[313605228,1707464369635,150.0,0.0002235,2]
[313605229,1707464438422,250.0,0.0002235,2]
[313605230,1707464495777,187.16658225,0.00020698,2]
[313605231,1707464496861,685.91873901,0.00020698,2]
[313605232,1707464502287,578.93903042,0.00022078,2]
[313605234,1707464584494,159.25,0.00022252,10]
[313605235,1707464596597,1123.0,0.00022,2]
[313605236,1707464628005,154.63,0.00022384,2]
[313605237,1707464633909,500.0,0.00022105,2]
[313605238,1707464651743,2757.57,0.00022111,2]
[313605241,1707464719150,2000.0,0.00022111,2]
[313605242,1707464727375,166.48,0.00022104,2]
[313605243,1707464767892,3949.02421693,0.00027,30]
[313605245,1707464778078,915.7,0.00022129,2]
[313605246,1707464784704,242.23,0.00020211,2]
[313605247,1707464784762,242.23,0.00022475,2]
[313605248,1707464785334,194.31,0.00022129,2]
[313605249,1707464792106,1016.97,0.00022129,2]
[313605250,1707464806599,367.14,0.00022122,2]
[313605251,1707464816196,231.29,0.00022123,2]
[313605252,1707464891544,425.54,0.00022262,2]
[313605259,1707464974884,207.0,0.00021917,2]
[313605263,1707465009177,250.0,0.00022085,2]
[313605264,1707465018822,1000.0,0.00022085,2]
[313605278,1707465031911,-154.63,0.0002255,2]
[313605279,1707465031921,-509.30622624,0.00022715,2]
[313605280,1707465031933,-388.17595752,0.00022715,2]
[313605281,1707465031945,-144.1873228,0.00022715,2]
[313605282,1707465031954,-159.0185324,0.00022716,2]
[313605283,1707465031964,-132.59259393,0.00022717,2]
[313605284,1707465031980,-22.03740607,0.00022717,2]
[313605285,1707465031989,-688.3146029,0.00022721,2]
[313605286,1707465032004,-4628.5,0.00022721,2]
[313605294,1707465038067,-2455.7,0.00022721,2]
[313605295,1707465038081,-350.21097811,0.00022721,2]
[313605296,1707465038091,-159.01853239,0.00022753,2]
[313605297,1707465038101,-159.01853239,0.0002279,2]
[313605298,1707465038110,-650.57075446,0.00022816,2]
[313605299,1707465038138,-149.42924554,0.00022816,2]
[313605300,1707465038148,-159.01853239,0.00022826,2]
[313605301,1707465038157,-159.01853239,0.00022863,2]
[313605302,1707465038166,-242.39366137,0.00022863,2]
[313605303,1707465038222,-447.50633863,0.00022863,2]
[313605304,1707465038231,-2312.37,0.00022863,2]
[313605305,1707465038241,-4277.3,0.00022863,2]
[313605306,1707465038250,-714.83,0.00022875,2]
[313605307,1707465038259,-499.99,0.00022875,2]
[313605308,1707465038269,-155.0,0.00022883,2]
[313605309,1707465038278,-154.63,0.00022884,2]
[313605310,1707465038287,-531.19126445,0.000229,2]
[313605311,1707465038297,-4501.8995,0.000229,2]
[313605312,1707465038306,-1090.84816294,0.000229,2]
[313605313,1707465038321,-577.24837893,0.000229,2]
[313605324,1707465044433,-1016.39004315,0.000229,2]
[313605325,1707465044444,-301.60400004,0.000229,2]
[313605326,1707465044455,-606.39198877,0.000229,2]
[313605327,1707465044467,-372.69802617,0.000229,2]
[313605328,1707465044476,-508.78,0.000229,2]
[313605329,1707465044485,-23.57369919,0.000229,2]
[313605330,1707465044542,-4603.79630081,0.000229,2]
[313605331,1707465044552,-159.01853239,0.000229,2]
[313605332,1707465044561,-636.35,0.00022917,2]
[313605333,1707465044570,-598.1247,0.00022988,2]
[313605334,1707465044579,-157.88276582,0.00022998,2]
[313605335,1707465044588,-310.0,0.00022998,2]
[313605336,1707465044598,-156.75185673,0.00022998,2]
[313605337,1707465044607,-6278.43073803,0.00022998,2]
[313605338,1707465044616,-155.84342339,0.00022998,2]
[313605339,1707465044626,-204.7712179,0.00022998,2]
[313605340,1707465044635,-156.12756991,0.00022998,2]
[313605341,1707465044644,-156.87377571,0.00022998,2]
[313605342,1707465044654,-233.6686873,0.00022998,2]
[313605343,1707465044663,-299.31982973,0.00022998,2]
[313605344,1707465044681,-268.90933384,0.00022998,2]
[313605345,1707465044693,-228.83425128,0.00022998,2]
[313605346,1707465044703,-291.6711707,0.00022998,2]
[313605347,1707465044713,-318.98310782,0.00022998,2]
[313605348,1707465044722,-365.41587174,0.00022998,2]
[313605349,1707465044731,-274.57797004,0.00022998,2]
[313605350,1707465044741,-278.86583974,0.00022998,2]
[313605351,1707465044751,-621.16475144,0.00022998,2]
[313605352,1707465044761,-1095.9668647,0.00022998,2]
[313605354,1707465044771,-167.38143249,0.00022998,2]
[313605355,1707465044780,-201.0077829,0.00022998,2]
[313605356,1707465044789,-267.56927391,0.00022999,2]
[313605357,1707465044799,-217.76910486,0.00022999,2]
[313605358,1707465044808,-179.96646652,0.00022999,2]
[313605359,1707465044819,-156.79801457,0.00022999,2]
[313605361,1707465044831,-10822.30370562,0.00022999,2]
[313605363,1707465044840,-500.0,0.00022999,2]
[313605365,1707465044850,-389.27484338,0.00022999,2]
[313605366,1707465044859,-1069863.82735922,0.00023,2]
[313605369,1707465044873,-895.95972437,0.00023,2]
[313605371,1707465044887,-2953.39540874,0.00023,2]
[313605373,1707465044901,-359.05198259,0.00023,2]
[313605382,1707465045035,-2105.55,0.00023,2]
[313605383,1707465045046,-1503.93433306,0.00023,2]
[313605384,1707465045058,-10050.2900985,0.00023,2]
[313605385,1707465045125,-22861.19327805,0.00023,2]
[313605386,1707465045137,-306.5613438,0.00023,2]
[313605387,1707465045158,-7263.4266,0.00023,2]
[313605388,1707465045209,-510.13070881,0.00023,2]
[313605389,1707465045221,-4980.08753053,0.00023,2]
[313605390,1707465045233,-843.39107488,0.00023,2]
[313605391,1707465045255,-1119.993,0.00023,2]
[313605392,1707465045267,-272.65594049,0.00023,2]
[313605393,1707465045278,-2799.18,0.00023,2]
[313605416,1707465049175,-454.81212069,0.000229,2]
[313605417,1707465049209,-1222.64787931,0.000229,2]
[313605418,1707465049219,-357.60029594,0.00022998,2]
[313605419,1707465049228,-12281.28162474,0.00023,2]
[313605420,1707465049241,-358.0386,0.00023,2]
[313605423,1707465063749,208.0,0.00021917,2]
[313605428,1707465168300,177.11,0.00022,2]
[313605430,1707465280637,233.86,0.0002191,2]
[313605433,1707465504609,-1173.25090402,0.00022525,2]
[313605434,1707465729301,154.63,0.00022493,2]
[313605436,1707465758760,948.55,0.00022316,2]
[313605437,1707465802107,70.07090402,0.00022,2]
[313605438,1707465802134,283.93909598,0.00022,2]
[313605439,1707465826342,-722.03,0.00022734,2]
[313605440,1707465826366,-800.0,0.00022816,2]
[313605441,1707465826391,-154.63,0.00022884,2]
[313605442,1707465826413,-386.40329842,0.00022898,2]
[313605443,1707465826435,-2206.57701654,0.00022899,2]
[313605444,1707465826458,-187.32171384,0.00022899,2]
[313605445,1707465827785,161.5,0.00022396,2]
[313605446,1707465828153,154.4612657,0.00022799,2]
[313605447,1707465848617,-386.40329842,0.00022898,2]
[313605448,1707465853273,222.16,0.00021615,2]
[313605449,1707465869240,2475.70872217,0.00021754,7]
[313605453,1707466051700,159.25,0.00022517,10]
[313605454,1707466070320,3313.19,0.00022416,2]
[313605458,1707466219318,790.45,0.00022327,2]
[313605463,1707466232409,-385.94272556,0.00022516,2]
[313605464,1707466232419,-800.0,0.00022517,2]
[313605465,1707466232428,-44.40081861,0.00022568,2]
[313605466,1707466232457,-110.22918139,0.00022568,2]
[313605467,1707466232468,-939.90143521,0.0002278,2]
[313605468,1707466232492,-1124.53821778,0.0002278,2]
[313605469,1707466232517,-10463.86434435,0.0002278,2]
[313605470,1707466232562,-993.79654298,0.0002278,2]
[313605475,1707466237968,-730.51242316,0.0002278,2]
[313605476,1707466237979,-741.27723955,0.0002278,2]
[313605477,1707466237991,-420.8888349,0.0002278,2]
[313605478,1707466238002,-313.89851893,0.0002278,2]
[313605479,1707466238014,-4282.31746697,0.0002278,2]
[313605480,1707466238025,-609.47680672,0.0002278,2]
[313605481,1707466238036,-56344.49133638,0.0002278,2]
[313605482,1707466238056,-16229.87118536,0.0002278,2]
[313605483,1707466238067,-423.356324,0.0002278,2]
[313605484,1707466238106,-6697.8236926,0.0002278,2]
[313605485,1707466238117,-2459.28145705,0.0002278,2]
[313605486,1707466238128,-20717.08133818,0.0002278,2]
[313605487,1707466238139,-6440.7481138,0.0002278,2]
[313605488,1707466238148,-1050.0,0.000228,2]
[313605489,1707466238158,-438.18207028,0.00022895,2]
[313605490,1707466238209,-11033.99823331,0.00022895,2]
[313605491,1707466238223,-613.71908962,0.00022895,2]
[313605508,1707466241374,-796.22503796,0.00022895,2]
[313605509,1707466241386,-7489.54997218,0.00022895,2]
[313605510,1707466241432,-544.13000421,0.00022895,2]
[313605511,1707466241515,-2259.80024943,0.00022895,2]
[313605512,1707466241526,-865.44923091,0.00022895,2]
[313605513,1707466241538,-428.1062567,0.00022895,2]
[313605514,1707466241557,-2925.98626232,0.00022895,2]
[313605522,1707466241621,-601.19317598,0.00022895,2]
[313605534,1707466243110,-2997.50244625,0.00022895,2]
[313605535,1707466243164,-634.33467085,0.00022895,2]
[313605536,1707466243174,-252.2966,0.00022895,2]
[313605537,1707466243183,-359.85393521,0.00022898,2]
[313605538,1707466243192,-41563.5153,0.000229,2]
[313605539,1707466243204,-296.621,0.000229,2]
[313605540,1707466243213,-873.07682908,0.000229,2]
[313605541,1707466243223,-328.8002,0.000229,2]
[313605542,1707466243233,-35259.3847,0.000229,2]
[313605543,1707466243243,-1412.1497,0.000229,2]
[313605544,1707466243253,-5000.0,0.000229,2]
[313605545,1707466243263,-1514.82614474,0.000229,2]
[313605546,1707466243272,-408.88437505,0.000229,2]
[313605547,1707466243280,-1751.43524694,0.000229,2]
[313605548,1707466243289,-292.8570567,0.000229,2]
[313605549,1707466243300,-160.86732892,0.0002298,2]
[313605550,1707466243309,-189.40059503,0.0002299,2]
[313605551,1707466243318,-10044.4,0.00022998,2]
[313605552,1707466243328,-1645.967943,0.00022998,2]
[313605553,1707466243337,-339.45373458,0.00022999,2]
[313605555,1707466243347,-447.5188044,0.00022999,2]
[313605557,1707466243356,-6707.85302738,0.00022999,2]
[313605558,1707466243366,-156.10266455,0.00022999,2]
[313605559,1707466243375,-513.9009651,0.00022999,2]
[313605560,1707466243384,-383243.62151706,0.00023,2]
[313605561,1707466243396,-892.47762918,0.00023,2]
[313605562,1707466243436,-13468.81371338,0.00023,2]
[313605564,1707466246213,-11561.0,0.00023,2]
[313605570,1707466255586,7720.69510262,0.00022304,2]
[313605572,1707466327466,154.52149132,0.00022,2]
[313605573,1707466413772,207.0,0.00022148,2]
[313605574,1707466416038,234.34768806,0.00022,2]
[313605575,1707466471201,239.6,0.00021641,2]
[313605581,1707466572388,159.25,0.00022437,10]
[313605597,1707466732261,-257.29515037,0.00022524,2]
[313605598,1707466732282,-280.63841946,0.00022525,2]
[313605599,1707466732304,-360.0,0.00022531,2]
[313605600,1707466732325,-4508.83685279,0.00022564,2]
[313605601,1707466732350,-154.63,0.00022565,2]
[313605602,1707466732370,-32652.4179,0.000227,2]
[313605603,1707466732393,-8320.0,0.0002277,2]
[313605604,1707466732415,-4076.17524073,0.0002277,2]
[313605605,1707466732437,-160140.5474,0.000228,2]
[313605606,1707466732459,-5328.0669,0.000228,2]
[313605607,1707466732480,-200.0,0.00022816,2]
[313605608,1707466732502,-800.0,0.00022816,2]
[313605609,1707466732522,-2299.57779875,0.00022885,2]
[313605610,1707466732556,-2173.9682,0.000229,2]
[313605611,1707466732580,-1016.39,0.000229,2]
[313605612,1707466732602,-195.2380378,0.000229,2]
[313605613,1707466732625,-18806.45,0.000229,2]
[313605614,1707466732648,-3537.22580857,0.000229,2]
[313605615,1707466732672,-965.4,0.000229,2]
[313605616,1707466732693,-1009.8840965,0.000229,2]
[313605617,1707466732714,-302.3718739,0.00022998,2]
[313605618,1707466732735,-155.43545789,0.00022998,2]
[313605619,1707466732756,-1799.65008305,0.00022998,2]
[313605620,1707466732777,-3640.7371751,0.00022998,2]
[313605621,1707466732799,-295.33468107,0.00022998,2]
[313605622,1707466732820,-1267.86918025,0.00022998,2]
[313605623,1707466732840,-437.3779411,0.00022998,2]
[313605624,1707466732863,-693.81005311,0.00022999,2]
[313605625,1707466732885,-1931331.82129848,0.00023,2]
[313605626,1707466732907,-812992.85045108,0.00023,2]
[313605629,1707466970593,804.26303332,0.00022,2]
[313605630,1707466992884,227.62,0.00021617,2]
[313605631,1707467152361,556.72909579,0.00021617,5]
[313605632,1707467210969,-214.41262531,0.00022996,2]
[313605633,1707467210988,-311.48123759,0.00022997,2]
[313605634,1707467211009,-1543.09819015,0.00022998,2]
[313605635,1707467211029,-180.11702379,0.00022998,2]
[313605636,1707467211054,-721.6499269,0.00022998,2]
[313605637,1707467211074,-716.3096329,0.00022998,2]
[313605638,1707467211095,-150.10797658,0.00023,3]
[313605639,1707467211300,-172.09401052,0.00023,3]
[313605640,1707467211323,-19465.02513583,0.00023,2]
[313605641,1707467211345,-208698.34911724,0.00023,2]
[313605642,1707467211367,-31320.15160877,0.00023,2]
[313605643,1707467211390,-2000.0,0.00023,2]
[313605644,1707467211411,-2000.0,0.00023,2]
[313605645,1707467211431,-200.0,0.00023,2]
[313605646,1707467211451,-2000.0,0.00023,2]
[313605647,1707467211475,-200.0,0.00023,2]
[313605648,1707467211495,-200.0,0.00023,2]
[313605649,1707467211516,-342.08,0.00023,2]
[313605650,1707467241383,290.77,0.00023,2]
[313605659,1707467365778,247.15,0.00023,2]
[313605660,1707467404589,2000.0,0.00023,2]
[313605662,1707467432182,-596.9246941,0.00023084,2]
[313605663,1707467432194,-403.0753059,0.00023087,2]
[313605664,1707467432239,-693.81005311,0.00023087,2]
[313605665,1707467432251,-76.36554502,0.00023087,2]
[313605666,1707467432261,-411.05,0.000231,2]
[313605667,1707467432270,-417.84,0.000231,2]
[313605668,1707467432279,-411.05,0.000231,2]
[313605669,1707467432289,-411.05,0.000231,2]
[313605670,1707467432300,-417.84,0.000231,2]
[313605671,1707467432309,-300.0,0.000231,2]
[313605672,1707467432319,-821.43,0.000231,2]
[313605673,1707467432328,-835.68,0.000231,2]
[313605674,1707467432338,-150.0,0.000231,2]
[313605675,1707467432347,-1856.53,0.000231,2]
[313605676,1707467432357,-842.58,0.000231,2]
[313605677,1707467432366,-411.05,0.000231,2]
[313605678,1707467432375,-300.0,0.000231,2]
[313605679,1707467432385,-150.0,0.000231,2]
[313605680,1707467432394,-342.41,0.000231,2]
[313605681,1707467432404,-411.05,0.000231,2]
[313605682,1707467432413,-1133.42540133,0.0002313,2]
[313605697,1707467432633,-4640.89988,0.0002313,2]
[313605698,1707467432653,-15706.50749654,0.0002313,2]
[313605699,1707467432663,-151.57409959,0.0002313,3]
[313605700,1707467432672,-159.66,0.00023155,2]
[313605701,1707467432681,-499.99,0.00023155,2]
[313605702,1707467432690,-4083.0,0.000232,2]
[313605703,1707467432700,-2000.0,0.0002323,2]
[313605704,1707467432710,-200.0,0.0002323,2]
[313605705,1707467432720,-2000.0,0.0002323,2]
[313605706,1707467432730,-200.0,0.0002323,2]
[313605707,1707467432740,-200.0,0.0002323,2]
[313605708,1707467432749,-129.27153678,0.0002323,2]
[313605709,1707467433678,207.0,0.00022934,2]
[313605714,1707467438124,-202.95954651,0.0002313,3]
[313605715,1707467438133,-425.71995112,0.0002323,2]
[313605716,1707467438145,-879.41635385,0.0002323,2]
[313605717,1707467438153,-8692.56418259,0.000233,2]
[313605718,1707467438164,-4918.33368734,0.000233,2]
[313605719,1707467438175,-702.9664596,0.000233,2]
[313605720,1707467438338,-7850.13567047,0.000233,2]